[Event "Memorial Ukrainian Chess Warriors 2024"]
[Site "Lviv"]
[Date "2024.03.15"]
[Round "6.7"]
[White "Starozhilov, Leonid"]
[Black "Hnatyshyn, Anastasiya"]
[Result "0-1"]
[ECO "A13"]
[WhiteElo "2285"]
[BlackElo "2017"]
[Annotator "TA"]
[PlyCount "70"]
[EventDate "2024.03.06"]
[EventType "swiss"]
[EventCountry "UKR"]
[SourceTitle "playchess.com"]
[Source "ChessBase"]
[SourceQuality "1"]
[TimeControl "600+5"]

{[%evp 13,70,2,20,11,11,-2,35,14,20,-9,-20,-16,-16,-61,-58,-47,0,-372,-391,-379,-383,-374,-316,-475,-453,-483,-455,-483,-479,-465,-458,-444,-458,-427,-408,-410,-414,-443,-431,-419,-407,-539,-516,-2347,-943,-801,-771,-2028,-2331,-2050,-1967,-29989,-29990,-29990,-29991,-29991,-29992,-29992,-29993]} 1. c4 {[%emt 0:00:01]} e6 {[%emt 0:00:05]} 2. Nf3 {[%emt 0:00:06]} d5 {[%emt 0:00:02]} 3. b3 {[%emt 0:00:04]} Nf6 {[%emt 0:00:06]} 4. Bb2 {[%emt 0:00:02]} c5 {[%emt 0:00:30]} 5. cxd5 {[%emt 0:00:31]} exd5 {[%emt 0:00:32]} 6. e3 {[%emt 0:00:29]} Nc6 {[%emt 0:00:12]} 7. Bb5 {[%emt 0:00:12]} Be7 {[%emt 0:00:32]} 8. Bxc6+ {[%emt 0:00:54]} bxc6 {[%emt 0:00:02]} 9. Ne5 {[%emt 0:00:01]} Qb6 {[%emt 0:00:23]} 10. O-O {[%emt 0:00:24] Weiß steht etwas besser.} O-O {[%emt 0:00:09]} 11. d3 {[%emt 0:00:45]} a5 {[%emt 0:00:29]} 12. Nc3 {[%emt 0:00:34] [#]} a4 $1 {[%emt 0:00:16]} 13. Ba3 {[%emt 0:00:39]} ({Viel schlechter ist} 13. Nxa4 Rxa4 14. bxa4 Qxb2 15. Nxc6 Qb7 16. Nxe7+ Qxe7 $17) (13. Qc1 axb3) 13... axb3 {[%emt 0:00:29]} 14. axb3 {[%emt 0:00:06]} Bd6 {[%emt 0:01:48]} (14... Qc7 $15 {ist eher angebracht.} 15. Nf3 Bg4) 15. d4 $2 {[%emt 0:00:35][%mdl 8192] [#] Schwarz führt seinen Vorteil zum Gewinn.} (15. Nf3 $1 $11) 15... Rxa3 $1 $19 {[%emt 0:00:29][%mdl 512]} 16. Rxa3 {[%emt 0:01:36]} cxd4 {[%emt 0:00:01]} 17. Na4 {[%emt 0:01:44]} Qc7 {[%emt 0:00:49]} 18. Ra2 {[%emt 0:01:10]} (18. b4 {war erzwungen.} Bxe5 19. f4 dxe3 20. fxe5 Qxe5 21. Qe2) 18... Bxe5 {[%emt 0:00:03]} 19. f4 {[%emt 0:00:01]} Bd6 {[%emt 0:00:03]} 20. Qxd4 {[%emt 0:00:04]} c5 {[%emt 0:00:38]} 21. Qd3 {[%emt 0:00:02]} Bb7 {[%emt 0:00:46][%cal Od5d4]} 22. Nc3 {[%emt 0:00:19]} Qc6 {[%emt 0:00:22]} 23. Qb5 {[%emt 0:00:34]} d4 {[%emt 0:00:26]} 24. Qxc6 {[%emt 0:00:03]} Bxc6 {[%emt 0:00:01] Das Läuferpaar ist gut.} 25. Ra6 {[%emt 0:00:09]} dxc3 {[%emt 0:00:27]} 26. Rxc6 {[%emt 0:00:01]} Ne4 {[%emt 0:00:01]} 27. Ra1 {[%emt 0:00:11]} Rb8 {[%emt 0:00:13]} 28. Ra4 {[%emt 0:00:23]} (28. Rca6 $142 c4 (28... Rxb3 $2 29. Rxd6 g6 30. Rdd1 $19) 29. b4) 28... f5 {[%emt 0:00:19]} (28... c2 $142 29. Rc4 Rxb3 (29... Ra8 $2 30. g4 $19)) 29. g4 {[%emt 0:00:27]} g6 {[%emt 0:00:01]} 30. g5 {[%emt 0:00:15]} Rxb3 {[%emt 0:00:35]} 31. Rc8+ {[%emt 0:00:02]} Kf7 {[%emt 0:00:01] ( -> ...c2)} 32. Ra7+ {[%emt 0:00:00]} Ke6 {[%emt 0:00:01] Schwarz setzt Matt.} 33. Ra2 {[%emt 0:00:16]} Rb1+ {[%emt 0:00:04]} 34. Kg2 {[%emt 0:00:02]} Rb2+ {[%emt 0:00:02]} 35. Rxb2 {[%emt 0:00:01]} cxb2 {[%emt 0:00:01] Gewichteter Fehlerwert: Weiß=0.92/Schwarz=0.26 (präzise) .  Verlustzug:     	Weiß=1     	---        Fehler:       	Weiß=2     	Schwarz=2     Ungenau:       	Weiß=3     	Schwarz=1     OK:         	Weiß=6     	Schwarz=9     Bester:       	Weiß=1     	Schwarz=1     Brilliant:      	---       	Schwarz=2} 0-1

[Event "Memorial Ukrainian Chess Warriors 2024"]
[Site "Lviv"]
[Date "2024.03.15"]
[Round "6.8"]
[White "Shevchenko, Yaroslav"]
[Black "Semenov, Dmytro"]
[Result "1-0"]
[ECO "E06"]
[WhiteElo "1971"]
[BlackElo "2370"]
[Annotator "ChessBase"]
[PlyCount "69"]
[EventDate "2024.03.06"]
[EventType "swiss"]
[EventCountry "UKR"]
[SourceTitle "playchess.com"]
[Source "ChessBase"]
[SourceQuality "1"]
[TimeControl "600+5"]

1. d4 {[%emt 0:00:08]} d5 {[%emt 0:00:02]} 2. c4 {[%emt 0:00:01]} e6 {[%emt 0:00:01]} 3. Nf3 {[%emt 0:00:02]} Nf6 {[%emt 0:00:04]} 4. g3 {[%emt 0:00:01]} Be7 {[%emt 0:00:04]} 5. Bg2 {[%emt 0:00:02]} O-O {[%emt 0:00:03]} 6. O-O {[%emt 0:00:02]} c6 {[%emt 0:00:01]} 7. Qc2 {[%emt 0:00:02]} b6 {[%emt 0:00:03]} 8. Nbd2 {[%emt 0:00:03]} Na6 {[%emt 0:00:05]} 9. a3 {[%emt 0:00:11]} Bb7 {[%emt 0:00:11]} 10. Rd1 {[%emt 0:00:16]} Rc8 {[%emt 0:00:14]} 11. b4 {[%emt 0:00:32]} c5 {[%emt 0:01:09]} 12. dxc5 {[%emt 0:00:03]} bxc5 {[%emt 0:00:05]} 13. b5 {[%emt 0:00:01]} Nc7 {[%emt 0:00:19]} 14. Bb2 {[%emt 0:00:31]} Nd7 {[%emt 0:02:41]} 15. e3 {[%emt 0:00:30]} Bf6 {[%emt 0:00:04]} 16. a4 {[%emt 0:00:20]} Qe7 {[%emt 0:00:12]} 17. h4 {[%emt 0:00:49]} h6 {[%emt 0:00:23]} 18. Rac1 {[%emt 0:00:35]} Rfd8 {[%emt 0:00:30]} 19. Bxf6 {[%emt 0:01:28]} Qxf6 {[%emt 0:00:18]} 20. Ne1 {[%emt 0:02:06]} Ne8 {[%emt 0:01:45]} 21. Nb3 {[%emt 0:00:41]} Ne5 {[%emt 0:01:35]} 22. Na5 {[%emt 0:00:59]} Ba8 {[%emt 0:00:07]} 23. Nd3 {[%emt 0:00:05]} dxc4 {[%emt 0:00:54]} 24. Nxe5 {[%emt 0:00:05]} Bxg2 {[%emt 0:00:09]} 25. Rxd8 {[%emt 0:01:24]} Qxd8 {[%emt 0:00:20]} 26. Kxg2 {[%emt 0:00:10]} Qxa5 {[%emt 0:00:05]} 27. Nc6 {[%emt 0:00:01]} Rxc6 {[%emt 0:00:44]} 28. bxc6 {[%emt 0:00:01]} Nd6 {[%emt 0:00:01]} 29. Qe2 {[%emt 0:01:02]} Qc7 {[%emt 0:00:05]} 30. Qf3 {[%emt 0:00:00]} e5 {[%emt 0:00:03]} 31. Qd5 {[%emt 0:00:02]} e4 {[%emt 0:00:10]} 32. Rd1 {[%emt 0:00:13]} c3 {[%emt 0:00:00]} 33. Qxd6 {[%emt 0:00:01]} Qxd6 {[%emt 0:00:02]} 34. Rxd6 {[%emt 0:00:00]} c2 {[%emt 0:00:01]} 35. c7 {[%emt 0:00:01]} 1-0

[Event "Memorial Ukrainian Chess Warriors 2024"]
[Site "Lviv"]
[Date "2024.03.15"]
[Round "6.9"]
[White "Kazakov, Maksym"]
[Black "Alexikov, Alexander"]
[Result "0-1"]
[ECO "A01"]
[WhiteElo "1992"]
[BlackElo "2183"]
[Annotator "RC"]
[PlyCount "78"]
[EventDate "2024.03.06"]
[EventType "swiss"]
[EventCountry "UKR"]
[SourceTitle "playchess.com"]
[Source "ChessBase"]
[SourceQuality "1"]
[TimeControl "600+5"]

1. b3 {[%emt 0:00:02]} e5 {[%emt 0:00:08]} 2. Bb2 {[%emt 0:00:01]} d6 {[%emt 0:00:01]} 3. e3 {[%emt 0:00:03]} g6 {[%emt 0:00:07]} 4. c4 {[%emt 0:00:05]} Bg7 {[%emt 0:00:01]} 5. Nf3 {[%emt 0:00:29]} f5 6. d3 Nf6 {[%emt 0:00:12]} 7. Be2 {[%emt 0:00:12]} c5 {[%emt 0:00:06]} 8. O-O {[%emt 0:00:05]} O-O {[%emt 0:00:05]} 9. Nc3 {[%emt 0:00:05]} Nc6 {[%emt 0:00:05]} 10. Nd5 {[%emt 0:00:05]} Nxd5 {[%emt 0:00:05]} 11. cxd5 {[%emt 0:00:05]} Ne7 {[%emt 0:00:05]} 12. e4 {[%emt 0:00:00]} Kh8 {[%emt 0:00:35]} 13. Nd2 {[%emt 0:00:08]} Ng8 {[%emt 0:00:22]} 14. f4 {[%emt 0:00:08]} exf4 {[%emt 0:00:21]} 15. Bxg7+ {[%emt 0:00:04]} Kxg7 {[%emt 0:00:01]} 16. Rxf4 {[%emt 0:00:25]} Nf6 {[%emt 0:00:22]} 17. h4 {[%emt 0:00:37]} Qe7 {[%emt 0:00:16]} 18. g3 {[%emt 0:00:35]} Bd7 {[%emt 0:00:14]} 19. Qc2 {[%emt 0:00:55]} Rae8 {[%emt 0:00:11]} 20. Raf1 {[%emt 0:00:07]} b5 {[%emt 0:00:14]} 21. Qb2 {[%emt 0:00:33]} Kg8 {[%emt 0:00:07]} 22. b4 {[%emt 0:00:05]} Nxd5 {[%emt 0:00:14]} 23. Qb3 {[%emt 0:00:56]} Qf7 {[%emt 0:00:16]} 24. exd5 {[%emt 0:00:33]} Rxe2 {[%emt 0:00:03]} 25. Nf3 {[%emt 0:00:02]} h6 {[%emt 0:01:35]} 26. Rf2 {[%emt 0:00:50]} Re3 {[%emt 0:00:45]} 27. Rd2 {[%emt 0:02:03]} g5 {[%emt 0:00:12]} 28. hxg5 {[%emt 0:00:37]} hxg5 {[%emt 0:00:02]} 29. Nxg5 {[%emt 0:00:01]} Rxg3+ {[%emt 0:00:02]} 30. Rg2 {[%emt 0:00:01]} Rxg2+ {[%emt 0:00:01]} 31. Kxg2 {[%emt 0:00:01]} Qg6 {[%emt 0:00:10]} 32. Rf3 {[%emt 0:00:21]} f4 {[%emt 0:00:11]} 33. bxc5 {[%emt 0:00:04]} Qxg5+ {[%emt 0:00:03]} 34. Kf2 {[%emt 0:00:10]} Bg4 {[%emt 0:00:19]} 35. d4 {[%emt 0:00:29]} Bxf3 {[%emt 0:00:17]} 36. Qxf3 {[%emt 0:00:01]} Qg3+ {[%emt 0:00:25]} 37. Qxg3+ {[%emt 0:00:02]} fxg3+ {[%emt 0:00:01]} 38. Kxg3 {[%emt 0:00:01]} dxc5 {[%emt 0:00:01]} 39. dxc5 {[%emt 0:00:01]} Rf5 {[%emt 0:00:01]} 0-1

[Event "Memorial Ukrainian Chess Warriors 2024"]
[Site "Lviv"]
[Date "2024.03.15"]
[Round "6.10"]
[White "Bykovskiy, Oleg"]
[Black "Zakordonets, Olexandr"]
[Result "1-0"]
[ECO "B13"]
[WhiteElo "2231"]
[BlackElo "1963"]
[Annotator "TA"]
[PlyCount "65"]
[EventDate "2024.03.06"]
[EventType "swiss"]
[EventCountry "UKR"]
[SourceTitle "playchess.com"]
[Source "ChessBase"]
[SourceQuality "1"]
[TimeControl "600+5"]

{[%evp 11,65,16,13,17,15,0,0,0,23,0,0,0,0,-6,0,-12,-8,-8,0,-7,-11,-11,-9,-13,-14,-25,-22,-39,-6,-4,-16,0,0,0,78,79,75,79,94,87,99,110,247,251,247,237,241,214,310,315,1024,1022,1100,1087,1068,1046]} 1. e4 {[%emt 0:00:02]} c6 {[%emt 0:00:01]} 2. d4 {[%emt 0:00:02]} d5 {[%emt 0:00:02]} 3. exd5 {[%emt 0:00:01]} cxd5 {[%emt 0:00:01]} 4. Bd3 {[%emt 0:00:01]} Nc6 {[%emt 0:00:05]} 5. c3 {[%emt 0:00:01]} Nf6 {[%emt 0:00:02]} 6. h3 {[%emt 0:00:01]} g6 {[%emt 0:00:04]} 7. Nf3 {[%emt 0:00:01]} Bf5 {[%emt 0:00:02]} 8. Be2 {[%emt 0:00:14]} e6 {[%emt 0:00:11]} 9. O-O {[%emt 0:00:05] The position is equal.} Bd6 {[%emt 0:00:19]} 10. Nbd2 {[%emt 0:00:05]} (10. Bh6 {is more complex.} Nh5 11. Ne5 Qh4 12. Qd2) 10... h5 {[%emt 0:00:03]} 11. Re1 {[%emt 0:00:05]} Kf8 {[%emt 0:00:28]} 12. Nf1 {[%emt 0:00:10]} Kg7 {[%emt 0:00:05]} 13. Bg5 {[%emt 0:00:06]} Qc7 {[%emt 0:00:17]} 14. Bd3 {[%emt 0:00:13]} Bxd3 {[%emt 0:00:18]} (14... Ne7 {looks sharper.} 15. Ne3 Bxd3 16. Qxd3 Rac8) 15. Bxf6+ {[%emt 0:00:02]} Kxf6 {[%emt 0:00:02]} 16. Qxd3 {[%emt 0:00:02]} Kg7 {[%emt 0:00:14]} 17. N1d2 {[%emt 0:00:25][%cal Bf1d2,Bd2b3,Bb3c5][%mdl 32] [#]} b5 $1 {[%emt 0:00:25]} 18. Ng5 {[%emt 0:00:42][%cal Oe1e6]} (18. Qxb5 Rhb8 19. Qd3 Rxb2 $17) (18. Nb3 a6) 18... Rhe8 {[%emt 0:00:46]} 19. b4 {[%emt 0:00:56][%cal Od2b3]} ({But not} 19. Qxb5 Rab8 20. Qd3 Rxb2 $17) 19... Bf4 {[%emt 0:00:23]} (19... a5 {keeps more tension.} 20. a3 Ne7 21. Nb3 Qc4) 20. Ngf3 {[%emt 0:00:13]} Ne7 {[%emt 0:01:06]} 21. Nb3 $1 {[%emt 0:00:08][%cal Ob3c5]} Nf5 {[%emt 0:00:45]} 22. Nc5 {[%emt 0:00:05][%cal Oa2a3]} Nd6 {[%emt 0:00:01]} (22... a5 $1 $11) 23. g3 {[%emt 0:00:43]} Bh6 {[%emt 0:00:01]} 24. a4 {[%emt 0:00:01]} bxa4 {[%emt 0:01:09]} 25. Rxa4 {[%emt 0:00:18]} a5 {[%emt 0:00:01]} 26. Ne5 {[%emt 0:00:25] Wards off Nc4. White is more active. Excellent horsemanship.} Ne4 {[%emt 0:02:01] This costs Black the game.} 27. Nxe4 $18 {[%emt 0:03:51]} dxe4 {[%emt 0:00:02]} 28. Qxe4 {[%emt 0:00:01] Black must now prevent Rb1.} ({Don't do} 28. Rxe4 $6 axb4 29. Rxb4 Bg5 $16) 28... Qxc3 {[%emt 0:00:12]} ({Don't go for} 28... Bd2 $2 29. Rb1 $18) 29. Rea1 {[%emt 0:00:14]} Red8 {[%emt 0:02:43]} (29... Bg5 {was necessary.} 30. bxa5 Bf6) 30. bxa5 {[%emt 0:00:03][%cal Bb4a5,Ba5a6][%mdl 32]} Rab8 $2 {[%emt 0:00:16] [#]} (30... h4 31. Qxh4 f6) 31. Nc6 {[%emt 0:00:22] White is clearly winning.} Rbc8 {[%emt 0:00:11]} 32. Nxd8 {[%emt 0:00:01]} Rxd8 {[%emt 0:00:01]} 33. a6 {[%emt 0:00:02] Weighted Error Value: White=0.05 (flawless) /Black=0.25 (precise) .  Mistake:       	---       	Black=4      Inaccurate:     	---       	Black=1      OK:         	White=7     	Black=8      Best:        	White=3     	---        Strong:       	White=1     	---} 1-0

[Event "Memorial Ukrainian Chess Warriors 2024"]
[Site "Lviv"]
[Date "2024.03.15"]
[Round "6.11"]
[White "Domanskiy, Mykola"]
[Black "Voitychuk, Orest"]
[Result "1/2-1/2"]
[ECO "C54"]
[WhiteElo "2046"]
[BlackElo "1953"]
[Annotator "RC"]
[PlyCount "103"]
[EventDate "2024.03.06"]
[EventType "swiss"]
[EventCountry "UKR"]
[SourceTitle "playchess.com"]
[Source "ChessBase"]
[SourceQuality "1"]
[TimeControl "600+5"]

1. e4 {[%emt 0:00:02]} e5 {[%emt 0:00:06]} 2. Nf3 {[%emt 0:00:02]} Nc6 {[%emt 0:00:02]} 3. Bc4 {[%emt 0:00:02]} Bc5 {[%emt 0:00:02]} 4. c3 {[%emt 0:00:04]} Nf6 {[%emt 0:00:14]} 5. d3 {[%emt 0:00:06]} d6 {[%emt 0:00:15]} 6. h3 {[%emt 0:00:07]} h6 {[%emt 0:00:13]} 7. Nbd2 {[%emt 0:00:25]} a6 {[%emt 0:00:13]} 8. a4 {[%emt 0:00:33]} O-O {[%emt 0:00:22]} 9. O-O {[%emt 0:00:02]} Ba7 {[%emt 0:00:06]} 10. Re1 {[%emt 0:00:02]} Ne7 {[%emt 0:00:21]} 11. Nf1 {[%emt 0:00:03]} Ng6 {[%emt 0:00:03]} 12. d4 {[%emt 0:00:09]} c6 {[%emt 0:01:10]} 13. Ng3 {[%emt 0:03:10]} Re8 {[%emt 0:02:08]} 14. dxe5 {[%emt 0:00:57]} dxe5 {[%emt 0:00:16]} 15. Qb3 {[%emt 0:00:13]} Qc7 {[%emt 0:00:21]} 16. a5 {[%emt 0:00:29]} Be6 {[%emt 0:01:07]} 17. Be3 {[%emt 0:01:20]} Bxe3 {[%emt 0:00:21]} 18. fxe3 {[%emt 0:00:12]} Rad8 {[%emt 0:00:26]} 19. Bxe6 {[%emt 0:00:19]} Rxe6 {[%emt 0:00:33]} 20. Red1 {[%emt 0:00:49]} Red6 {[%emt 0:00:14]} 21. Rxd6 {[%emt 0:00:02]} Rxd6 {[%emt 0:00:01]} 22. Qc4 {[%emt 0:00:00]} Rd8 {[%emt 0:00:52]} 23. Nf5 {[%emt 0:00:44]} Qd7 {[%emt 0:00:27]} 24. Qb4 {[%emt 0:00:45]} Qd3 {[%emt 0:01:18]} 25. Qxb7 {[%emt 0:00:33]} Qxe4 {[%emt 0:00:08]} 26. Nd6 {[%emt 0:00:30]} Qxe3+ {[%emt 0:00:20]} 27. Kh1 {[%emt 0:00:00]} Rf8 {[%emt 0:00:33]} 28. Qxc6 {[%emt 0:00:02]} Nh5 {[%emt 0:00:02]} 29. Re1 {[%emt 0:00:12]} Ng3+ {[%emt 0:00:05]} 30. Kh2 {[%emt 0:00:01]} Qf4 {[%emt 0:00:01]} 31. Kg1 {[%emt 0:00:01]} h5 {[%emt 0:00:12]} 32. Qc4 {[%emt 0:00:14]} Qf6 {[%emt 0:00:06]} 33. Ne4 {[%emt 0:00:04]} Qf4 {[%emt 0:00:03]} 34. Ned2 {[%emt 0:00:09]} Qf6 {[%emt 0:00:04]} 35. Nf1 {[%emt 0:00:13]} Nf5 {[%emt 0:00:06]} 36. b4 {[%emt 0:00:03]} Nd6 {[%emt 0:00:04]} 37. Qxa6 {[%emt 0:00:04]} e4 {[%emt 0:00:02]} 38. Nd4 {[%emt 0:00:03]} Nf4 {[%emt 0:00:09]} 39. Ne3 {[%emt 0:00:11]} Qg6 {[%emt 0:00:07]} 40. Kh1 {[%emt 0:00:01]} Nd3 {[%emt 0:00:03]} 41. Rf1 {[%emt 0:00:03]} Rd8 {[%emt 0:00:04]} 42. Nc6 {[%emt 0:00:04]} Re8 {[%emt 0:00:02]} 43. b5 {[%emt 0:00:06]} Qg3 {[%emt 0:00:02]} 44. Qb6 {[%emt 0:00:24]} Nf2+ {[%emt 0:00:03]} 45. Rxf2 {[%emt 0:00:01]} Qxf2 {[%emt 0:00:02]} 46. a6 {[%emt 0:00:04]} h4 {[%emt 0:00:03]} 47. a7 {[%emt 0:00:06]} Qe1+ {[%emt 0:00:03]} 48. Kh2 {[%emt 0:00:01]} Qg3+ {[%emt 0:00:03]} 49. Kg1 {[%emt 0:00:01]} Qe1+ {[%emt 0:00:01]} 50. Kh2 {[%emt 0:00:07]} Qg3+ {[%emt 0:00:02]} 51. Kg1 Qe1+ 52. Nf1 1/2-1/2

[Event "Memorial Ukrainian Chess Warriors 2024"]
[Site "Lviv"]
[Date "2024.03.15"]
[Round "6.12"]
[White "Karvatskyi, Oleksii"]
[Black "Hrabinska, Myroslava"]
[Result "1/2-1/2"]
[ECO "D00"]
[WhiteElo "1986"]
[BlackElo "2177"]
[Annotator "RC"]
[PlyCount "49"]
[EventDate "2024.03.06"]
[EventType "swiss"]
[EventCountry "UKR"]
[SourceTitle "playchess.com"]
[Source "ChessBase"]
[SourceQuality "1"]
[TimeControl "600+5"]

1. d4 d5 2. Nc3 Nf6 3. Bf4 c6 4. e3 Bf5 5. Nf3 e6 6. Ne5 Bb4 7. g4 Bg6 8. h4 Ne4 9. h5 Nxc3 10. bxc3 Bxc3+ 11. Ke2 Be4 12. f3 Bxa1 13. Qxa1 f6 14. fxe4 fxe5 15. Bxe5 O-O 16. Qe1 Nd7 17. Bd6 Rf7 18. e5 Qb6 19. g5 Qb5+ 20. Kd1 Qb1+ 21. Kd2 Qxa2 22. Bh3 Nb6 23. Bxe6 Nc4+ 24. Kd3 Nxd6 25. g6 1/2-1/2

[Event "Memorial Ukrainian Chess Warriors 2024"]
[Site "Lviv"]
[Date "2024.03.15"]
[Round "6.13"]
[White "Medvedyk, Vasyl"]
[Black "Pentsko, Stanislav"]
[Result "1/2-1/2"]
[ECO "B20"]
[WhiteElo "1957"]
[BlackElo "1634"]
[Annotator "RC"]
[PlyCount "104"]
[EventDate "2024.03.06"]
[EventType "swiss"]
[EventCountry "UKR"]
[SourceTitle "playchess.com"]
[Source "ChessBase"]
[SourceQuality "1"]
[TimeControl "600+5"]

1. e4 {[%emt 0:00:01]} c5 {[%emt 0:00:01]} 2. a3 {[%emt 0:00:02]} e6 {[%emt 0:00:20]} 3. b4 {[%emt 0:00:01]} cxb4 {[%emt 0:00:08]} 4. axb4 {[%emt 0:00:01]} Nf6 {[%emt 0:00:12]} 5. e5 {[%emt 0:00:29]} Nd5 {[%emt 0:00:03]} 6. b5 {[%emt 0:00:21]} d6 {[%emt 0:00:05]} 7. exd6 {[%emt 0:00:04]} Bxd6 {[%emt 0:01:19]} 8. Bb2 {[%emt 0:00:08]} O-O {[%emt 0:00:26]} 9. Nf3 {[%emt 0:02:00]} e5 {[%emt 0:01:25]} 10. Bc4 {[%emt 0:01:35]} Nf4 {[%emt 0:02:14]} 11. g3 {[%emt 0:02:53]} Nh3 {[%emt 0:02:53]} 12. d4 {[%emt 0:02:03]} e4 {[%emt 0:00:11]} 13. Ng1 {[%emt 0:00:45]} Re8 {[%emt 0:00:46]} 14. Nxh3 {[%emt 0:00:04]} Bxh3 15. Qh5 {[%emt 0:00:03]} Qd7 {[%emt 0:00:14]} 16. Kd2 {[%emt 0:00:42]} Bb4+ {[%emt 0:00:05]} 17. Kc1 {[%emt 0:00:03]} g6 {[%emt 0:00:08]} 18. Qd5 {[%emt 0:00:03]} Qc7 {[%emt 0:00:30]} 19. c3 {[%emt 0:00:03]} Bf8 {[%emt 0:00:03]} 20. Be2 {[%emt 0:00:08]} Bh6+ {[%emt 0:00:03]} 21. Kd1 {[%emt 0:00:12]} Nd7 {[%emt 0:00:07]} 22. Nd2 {[%emt 0:00:06]} Nb6 {[%emt 0:00:18]} 23. Qc5 {[%emt 0:00:03]} Qd7 {[%emt 0:00:10]} 24. Nf1 {[%emt 0:00:08]} Rac8 {[%emt 0:00:03]} 25. Qb4 {[%emt 0:00:01]} Nd5 {[%emt 0:00:01]} 26. Qb3 {[%emt 0:00:01]} e3 {[%emt 0:00:02]} 27. f3 {[%emt 0:00:01]} b6 {[%emt 0:00:12]} 28. Rg1 {[%emt 0:00:15]} Rc7 {[%emt 0:00:05]} 29. Rc1 {[%emt 0:00:03]} Rec8 {[%emt 0:00:01]} 30. c4 {[%emt 0:00:01]} Bxf1 {[%emt 0:00:07]} 31. Rxf1 {[%emt 0:00:05]} Ne7 {[%emt 0:00:01]} 32. g4 {[%emt 0:00:09]} Bf4 {[%emt 0:00:02]} 33. Qd3 {[%emt 0:00:07]} Bxh2 {[%emt 0:00:04]} 34. Qxe3 {[%emt 0:00:03]} Qd6 {[%emt 0:00:07]} 35. f4 {[%emt 0:00:09]} Qe6 {[%emt 0:00:24]} 36. Qxe6 {[%emt 0:00:02]} fxe6 37. Bc3 {[%emt 0:00:08]} Rf8 {[%emt 0:00:03]} 38. Bd2 {[%emt 0:00:01]} Rd7 {[%emt 0:00:01]} 39. Ke1 {[%emt 0:00:08]} Rxd4 {[%emt 0:00:05]} 40. c5 {[%emt 0:00:06]} bxc5 {[%emt 0:00:02]} 41. Rxc5 {[%emt 0:00:00]} Nd5 {[%emt 0:00:01]} 42. Bc4 {[%emt 0:00:05]} Bxf4 43. Bxf4 {[%emt 0:00:03]} Nxf4 {[%emt 0:00:09]} 44. Rc7 {[%emt 0:00:09]} Ng2+ {[%emt 0:00:07]} 45. Ke2 {[%emt 0:00:02]} Rxf1 {[%emt 0:00:02]} 46. Bxe6+ {[%emt 0:00:01]} Kf8 {[%emt 0:00:01]} 47. Kxf1 {[%emt 0:00:02]} Nf4 {[%emt 0:00:05]} 48. Bc4 {[%emt 0:00:15]} h5 {[%emt 0:00:23]} 49. gxh5 {[%emt 0:00:06]} gxh5 {[%emt 0:00:01]} 50. Be2 {[%emt 0:00:08]} Nxe2 {[%emt 0:00:02]} 51. Kxe2 {[%emt 0:00:01]} Rb4 {[%emt 0:00:04]} 52. Rxa7 {[%emt 0:00:02]} Rxb5 {[%emt 0:00:01]} 1/2-1/2

[Event "Memorial Ukrainian Chess Warriors 2024"]
[Site "Lviv"]
[Date "2024.03.15"]
[Round "6.14"]
[White "Vinogradnik, Vladimir"]
[Black "Baziuk, Vladyslav"]
[Result "0-1"]
[ECO "B10"]
[WhiteElo "2036"]
[BlackElo "2211"]
[Annotator "ChessBase"]
[PlyCount "50"]
[EventDate "2024.03.06"]
[EventType "swiss"]
[EventCountry "UKR"]
[SourceTitle "playchess.com"]
[Source "ChessBase"]
[SourceQuality "1"]
[TimeControl "600+5"]

1. e4 {[%emt 0:00:03]} c6 {[%emt 0:00:01]} 2. d3 {[%emt 0:00:05]} d5 {[%emt 0:00:01]} 3. Nd2 {[%emt 0:00:01]} e5 {[%emt 0:00:01]} 4. Ngf3 {[%emt 0:00:02]} Bd6 {[%emt 0:00:02]} 5. g3 {[%emt 0:00:04]} Nf6 {[%emt 0:00:04]} 6. Bg2 {[%emt 0:00:03]} O-O {[%emt 0:00:03]} 7. O-O {[%emt 0:00:07]} Re8 {[%emt 0:00:03]} 8. Re1 {[%emt 0:00:07]} Nbd7 {[%emt 0:00:03]} 9. d4 {[%emt 0:00:38]} dxe4 {[%emt 0:01:17]} 10. Nxe4 {[%emt 0:00:13]} Nxe4 {[%emt 0:00:03]} 11. dxe5 {[%emt 0:00:29]} Nxe5 {[%emt 0:01:24]} 12. Rxe4 {[%emt 0:00:48]} Nxf3+ {[%emt 0:03:35]} 13. Bxf3 {[%emt 0:00:18]} Rxe4 {[%emt 0:00:54]} 14. Bxe4 {[%emt 0:00:05]} Be6 {[%emt 0:00:06]} 15. Qd3 {[%emt 0:00:17]} h6 {[%emt 0:00:12]} 16. Be3 {[%emt 0:00:21]} Qc7 {[%emt 0:00:10]} 17. Rd1 {[%emt 0:00:06]} Be5 {[%emt 0:00:01]} 18. Bxa7 {[%emt 0:00:55]} f5 {[%emt 0:00:13]} 19. Bxf5 {[%emt 0:00:13]} Bxf5 {[%emt 0:00:34]} 20. Qxf5 {[%emt 0:00:30]} Rxa7 {[%emt 0:00:03]} 21. Qe6+ {[%emt 0:00:25]} Kh7 {[%emt 0:00:21]} 22. Qf5+ {[%emt 0:00:04]} g6 {[%emt 0:01:19]} 23. Rd7+ {[%emt 0:00:04]} Bg7 {[%emt 0:00:01]} 24. Qf7 {[%emt 0:00:35]} Qe5 {[%emt 0:00:02]} 25. Rd8 {[%emt 0:00:03]} h5 {[%emt 0:00:07]} 0-1